[Event "Early-Titled-Tuesday-Blitz-April-16-2024"]
[Site "Chess.com"]
[Date "2024.04.16"]
[Round "5"]
[White "karinachess1"]
[Black "ATM622"]
[Result "1-0"]
[WhiteElo "2614"]
[BlackElo "2459"]
[TimeControl "180+1"]
[EndTime "8:55:25 PDT"]
[Termination "karinachess1 won on time"]

1. d4 {[%clk 0:03:00.9]} 1... Nf6 {[%clk 0:02:59.3]} 2. c4 {[%clk 0:03:00.1]}
2... e6 {[%clk 0:02:59]} 3. Nc3 {[%clk 0:02:59.5]} 3... d5 {[%clk 0:02:58.5]} 4.
cxd5 {[%clk 0:02:59.1]} 4... exd5 {[%clk 0:02:58.5]} 5. Bg5 {[%clk 0:02:59.1]}
5... Be7 {[%clk 0:02:56.3]} 6. e3 {[%clk 0:02:59.6]} 6... O-O {[%clk 0:02:56.3]}
7. Bd3 {[%clk 0:03:00.3]} 7... Bg4 {[%clk 0:02:36.9]} 8. Qc2 {[%clk 0:02:57.7]}
8... h6 {[%clk 0:02:34.6]} 9. Bh4 {[%clk 0:02:53.2]} 9... c6 {[%clk 0:02:30.4]}
10. Nge2 {[%clk 0:02:49.5]} 10... Re8 {[%clk 0:02:14.4]} 11. O-O {[%clk
0:02:49.2]} 11... Na6 {[%clk 0:02:00.8]} 12. a3 {[%clk 0:02:48]} 12... b5 {[%clk
0:01:14.2]} 13. b4 {[%clk 0:02:36.5]} 13... Rc8 {[%clk 0:01:02.2]} 14. f3 {[%clk
0:02:24.1]} 14... Bd7 {[%clk 0:00:58.5]} 15. e4 {[%clk 0:02:22.2]} 15... Nh5
{[%clk 0:00:54]} 16. Bxe7 {[%clk 0:02:07]} 16... Qxe7 {[%clk 0:00:53.1]} 17. e5
{[%clk 0:02:07]} 17... g5 {[%clk 0:00:37.5]} 18. f4 {[%clk 0:01:59.5]} 18... g4
{[%clk 0:00:29.5]} 19. f5 {[%clk 0:01:56.7]} 19... Qg5 {[%clk 0:00:24.9]} 20. g3
{[%clk 0:01:44.4]} 20... Qe3+ {[%clk 0:00:17.5]} 21. Rf2 {[%clk 0:01:21.8]}
21... Re7 {[%clk 0:00:06.6]} 22. Rf1 {[%clk 0:01:10.9]} 22... Rce8 {[%clk
0:00:06.3]} 23. Kg2 {[%clk 0:01:10.3]} 23... Nc7 {[%clk 0:00:06]} 24. Nd1 {[%clk
0:01:04.2]} 24... Qg5 {[%clk 0:00:06]} 25. Nf4 {[%clk 0:01:04.4]} 25... f6
{[%clk 0:00:04.5]} 26. e6 {[%clk 0:01:00.6]} 26... Bc8 {[%clk 0:00:04.3]} 27.
Qxc6 {[%clk 0:00:59.1]} 27... Rd8 {[%clk 0:00:03.5]} 28. Qc5 {[%clk 0:00:57.2]}
28... Rde8 {[%clk 0:00:01.6]} 29. Ne3 {[%clk 0:00:54.7]} 29... Kh7 {[%clk
0:00:01.8]} 30. Nexd5 {[%clk 0:00:53.1]} 30... Bb7 {[%clk 0:00:02.1]} 31. Be4
{[%clk 0:00:49.6]} 1-0

[Event "Early-Titled-Tuesday-Blitz-April-16-2024"]
[Site "Chess.com"]
[Date "2024.04.16"]
[Round "5"]
[White "Chess4always"]
[Black "mapleaff"]
[Result "1/2-1/2"]
[WhiteElo "2007"]
[BlackElo "2286"]
[TimeControl "180+1"]
[EndTime "8:55:25 PDT"]
[Termination "Game drawn by repetition"]

1. d4 {[%clk 0:02:51.7]} 1... d5 {[%clk 0:02:57.7]} 2. Nf3 {[%clk 0:02:52.3]}
2... Nf6 {[%clk 0:02:57.1]} 3. Bf4 {[%clk 0:02:52.7]} 3... c5 {[%clk 0:02:54.1]}
4. c3 {[%clk 0:02:52.9]} 4... Nc6 {[%clk 0:02:51.3]} 5. e3 {[%clk 0:02:53]} 5...
Qb6 {[%clk 0:02:40.4]} 6. Qb3 {[%clk 0:02:51.5]} 6... c4 {[%clk 0:02:40.2]} 7.
Qxb6 {[%clk 0:02:51.4]} 7... axb6 {[%clk 0:02:41.1]} 8. Be2 {[%clk 0:02:52]}
8... Bf5 {[%clk 0:02:37.1]} 9. O-O {[%clk 0:02:51.7]} 9... e6 {[%clk 0:02:28.6]}
10. a3 {[%clk 0:02:50.8]} 10... b5 {[%clk 0:02:18.2]} 11. Nbd2 {[%clk
0:02:48.2]} 11... h6 {[%clk 0:02:17.3]} 12. h3 {[%clk 0:02:38.7]} 12... g5
{[%clk 0:02:11.9]} 13. Bg3 {[%clk 0:02:28]} 13... Be7 {[%clk 0:02:09.5]} 14.
Rfe1 {[%clk 0:02:15.4]} 14... Ne4 {[%clk 0:02:04.7]} 15. Nxe4 {[%clk 0:01:56.7]}
15... Bxe4 {[%clk 0:02:05.6]} 16. Nd2 {[%clk 0:01:56.4]} 16... Bg6 {[%clk
0:02:05.1]} 17. Bf3 {[%clk 0:01:48.8]} 17... f5 {[%clk 0:02:04]} 18. Bd1 {[%clk
0:01:19.4]} 18... h5 {[%clk 0:01:56.2]} 19. Nf3 {[%clk 0:00:57.3]} 19... Bf6
{[%clk 0:01:43.7]} 20. Bd6 {[%clk 0:00:56.6]} 20... Kd7 {[%clk 0:01:41.1]} 21.
Bc5 {[%clk 0:00:56.8]} 21... Kc7 {[%clk 0:01:35.9]} 22. Bc2 {[%clk 0:00:53.1]}
22... b6 {[%clk 0:01:32.6]} 23. Bb4 {[%clk 0:00:52.9]} 23... Nxb4 {[%clk
0:01:20.3]} 24. axb4 {[%clk 0:00:53.8]} 24... g4 {[%clk 0:01:04.2]} 25. hxg4
{[%clk 0:00:53]} 25... hxg4 {[%clk 0:01:05.1]} 26. Ne5 {[%clk 0:00:53.6]} 26...
Bxe5 {[%clk 0:01:04.4]} 27. dxe5 {[%clk 0:00:54.5]} 27... Kb7 {[%clk 0:00:55]}
28. g3 {[%clk 0:00:54.9]} 28... Rag8 {[%clk 0:00:26.5]} 29. Kf1 {[%clk 0:00:54]}
29... Rh2 {[%clk 0:00:18.7]} 30. Ke2 {[%clk 0:00:53.5]} 30... Rgh8 {[%clk
0:00:18]} 31. Rf1 {[%clk 0:00:46.4]} 31... R8h6 {[%clk 0:00:15.9]} 32. Ke1
{[%clk 0:00:46.7]} 32... Rg2 {[%clk 0:00:12.9]} 33. Rd1 {[%clk 0:00:45.8]} 33...
Kc6 {[%clk 0:00:12.3]} 34. Ra1 {[%clk 0:00:45.3]} 34... Kb7 {[%clk 0:00:12.3]}
35. Rd1 {[%clk 0:00:45.4]} 35... Rhh2 {[%clk 0:00:12.1]} 36. Rd2 {[%clk
0:00:45.5]} 36... Rh6 {[%clk 0:00:11.3]} 37. Rd1 {[%clk 0:00:45.5]} 1/2-1/2

[Event "Early-Titled-Tuesday-Blitz-April-16-2024"]
[Site "Chess.com"]
[Date "2024.04.16"]
[Round "5"]
[White "HeroWilczek"]
[Black "VerdeNotte"]
[Result "0-1"]
[WhiteElo "2599"]
[BlackElo "2877"]
[TimeControl "180+1"]
[EndTime "8:55:28 PDT"]
[Termination "VerdeNotte won by resignation"]

1. e4 {[%clk 0:03:00.9]} 1... g6 {[%clk 0:02:55.9]} 2. d4 {[%clk 0:03:00.8]}
2... Bg7 {[%clk 0:02:56.2]} 3. Nf3 {[%clk 0:03:01.5]} 3... c6 {[%clk 0:02:52.2]}
4. Be2 {[%clk 0:02:59]} 4... d5 {[%clk 0:02:52.2]} 5. Nbd2 {[%clk 0:02:59]} 5...
dxe4 {[%clk 0:02:51.8]} 6. Nxe4 {[%clk 0:02:59.9]} 6... Nf6 {[%clk 0:02:51.2]}
7. Nxf6+ {[%clk 0:02:59.1]} 7... Bxf6 {[%clk 0:02:51.5]} 8. O-O {[%clk
0:02:59.7]} 8... O-O {[%clk 0:02:49.8]} 9. Bh6 {[%clk 0:02:58]} 9... Re8 {[%clk
0:02:50]} 10. c3 {[%clk 0:02:55.3]} 10... Bf5 {[%clk 0:02:45.2]} 11. Re1 {[%clk
0:02:53.7]} 11... Nd7 {[%clk 0:02:44]} 12. Bc4 {[%clk 0:02:52.3]} 12... Nb6
{[%clk 0:02:39.4]} 13. Bb3 {[%clk 0:02:51.2]} 13... Bg4 {[%clk 0:02:14.2]} 14.
h3 {[%clk 0:02:46.5]} 14... Bxf3 {[%clk 0:02:14.2]} 15. Qxf3 {[%clk 0:02:45.7]}
15... e6 {[%clk 0:02:12.5]} 16. a4 {[%clk 0:02:37.1]} 16... a5 {[%clk
0:02:08.6]} 17. Bf4 {[%clk 0:02:30]} 17... Nd5 {[%clk 0:02:05.1]} 18. Be5 {[%clk
0:02:30]} 18... Bxe5 {[%clk 0:02:04.4]} 19. Rxe5 {[%clk 0:02:30.8]} 19... Qb6
{[%clk 0:02:00.9]} 20. Bxd5 {[%clk 0:01:58.4]} 20... exd5 {[%clk 0:01:52.8]} 21.
Rae1 {[%clk 0:01:45.7]} 21... Rxe5 {[%clk 0:01:44.1]} 22. Rxe5 {[%clk
0:01:46.6]} 22... Qxb2 {[%clk 0:01:40.7]} 23. Re7 {[%clk 0:01:43.1]} 23... Rf8
{[%clk 0:01:40.3]} 24. h4 {[%clk 0:01:40.9]} 24... b5 {[%clk 0:01:35.5]} 25. Rb7
{[%clk 0:01:25]} 25... Qc1+ {[%clk 0:01:30.5]} 26. Kh2 {[%clk 0:01:22.8]} 26...
bxa4 {[%clk 0:01:30.9]} 27. Ra7 {[%clk 0:01:16.8]} 27... a3 {[%clk 0:01:24.7]}
28. Rxa5 {[%clk 0:01:16.9]} 28... h5 {[%clk 0:01:18.9]} 29. Qg3 {[%clk
0:00:55.9]} 29... Qb2 {[%clk 0:01:12]} 30. c4 {[%clk 0:00:52.8]} 30... a2 {[%clk
0:01:07.2]} 31. Qa3 {[%clk 0:00:52.7]} 31... Qxf2 {[%clk 0:01:02.3]} 32. cxd5
{[%clk 0:00:48.9]} 32... Qxh4+ {[%clk 0:01:00.8]} 33. Kg1 {[%clk 0:00:49.6]}
33... Qxd4+ {[%clk 0:00:58.3]} 34. Kh1 {[%clk 0:00:50.2]} 34... Re8 {[%clk
0:00:47.5]} 35. Ra8 {[%clk 0:00:50]} 35... Qh4+ {[%clk 0:00:42.8]} 36. Kg1
{[%clk 0:00:49.9]} 36... Qe1+ {[%clk 0:00:37.3]} 37. Kh2 {[%clk 0:00:49.9]}
37... Qe5+ {[%clk 0:00:28.1]} 38. Kg1 {[%clk 0:00:45.9]} 38... a1=Q+ {[%clk
0:00:23.8]} 39. Qxa1 {[%clk 0:00:44.2]} 39... Qxa1+ {[%clk 0:00:24.7]} 40. Rxa1
{[%clk 0:00:44.3]} 40... cxd5 {[%clk 0:00:25.4]} 41. Rd1 {[%clk 0:00:45]} 41...
Rd8 {[%clk 0:00:25.2]} 42. Kf2 {[%clk 0:00:45.7]} 42... d4 {[%clk 0:00:25.8]}
43. Kf3 {[%clk 0:00:46.2]} 43... d3 {[%clk 0:00:26]} 44. Ke3 {[%clk 0:00:46.7]}
44... d2 {[%clk 0:00:26.3]} 0-1

[Event "Early-Titled-Tuesday-Blitz-April-16-2024"]
[Site "Chess.com"]
[Date "2024.04.16"]
[Round "5"]
[White "ProtectiveCarrot"]
[Black "lrjchess"]
[Result "1-0"]
[WhiteElo "2320"]
[BlackElo "2469"]
[TimeControl "180+1"]
[EndTime "8:55:33 PDT"]
[Termination "ProtectiveCarrot won by checkmate"]

1. d4 {[%clk 0:02:53.9]} 1... Nf6 {[%clk 0:02:59.4]} 2. Nf3 {[%clk 0:02:53.5]}
2... g6 {[%clk 0:02:59.8]} 3. Nbd2 {[%clk 0:02:51.2]} 3... d5 {[%clk 0:02:59.2]}
4. e3 {[%clk 0:02:49.5]} 4... Bg7 {[%clk 0:02:59.2]} 5. b4 {[%clk 0:02:49.5]}
5... O-O {[%clk 0:02:59.9]} 6. Bb2 {[%clk 0:02:48.2]} 6... a5 {[%clk 0:02:57.7]}
7. b5 {[%clk 0:02:47.3]} 7... c6 {[%clk 0:02:51.5]} 8. c4 {[%clk 0:02:40.8]}
8... a4 {[%clk 0:02:50.4]} 9. Ba3 {[%clk 0:02:38.4]} 9... Qa5 {[%clk 0:02:44.7]}
10. Rb1 {[%clk 0:02:26.8]} 10... dxc4 {[%clk 0:02:42.8]} 11. Bxc4 {[%clk
0:02:21.7]} 11... Bf5 {[%clk 0:02:41.3]} 12. Bxe7 {[%clk 0:02:15.4]} 12... Bxb1
{[%clk 0:02:32.8]} 13. Bxf8 {[%clk 0:02:15.1]} 13... Bxf8 {[%clk 0:02:33.7]} 14.
Qxb1 {[%clk 0:02:13.9]} 14... Bb4 {[%clk 0:02:29]} 15. a3 {[%clk 0:01:47.3]}
15... Bxa3 {[%clk 0:02:22.7]} 16. bxc6 {[%clk 0:01:26.8]} 16... bxc6 {[%clk
0:01:46.8]} 17. Qa2 {[%clk 0:01:22.3]} 17... Bb4 {[%clk 0:01:34.3]} 18. Bxf7+
{[%clk 0:01:22.2]} 18... Kg7 {[%clk 0:01:34.7]} 19. O-O {[%clk 0:01:18.1]} 19...
Nbd7 {[%clk 0:01:34.1]} 20. Nc4 {[%clk 0:01:15.1]} 20... Qb5 {[%clk 0:01:25]}
21. Nce5 {[%clk 0:01:08.7]} 21... Nxe5 {[%clk 0:01:24.5]} 22. Nxe5 {[%clk
0:01:09.6]} 22... a3 {[%clk 0:01:18.7]} 23. Bxg6 {[%clk 0:01:08.5]} 23... Nd5
{[%clk 0:01:13.3]} 24. Bd3 {[%clk 0:01:05.6]} 24... Qb6 {[%clk 0:01:00.1]} 25.
Qe2 {[%clk 0:01:05.1]} 25... Nf6 {[%clk 0:00:55]} 26. Bc4 {[%clk 0:01:03]} 26...
c5 {[%clk 0:00:50.8]} 27. Nd7 {[%clk 0:00:52]} 27... Qd6 {[%clk 0:00:33.7]} 28.
Nxf6 {[%clk 0:00:50.1]} 28... Qxf6 {[%clk 0:00:34.6]} 29. dxc5 {[%clk
0:00:43.3]} 29... Bxc5 {[%clk 0:00:31.9]} 30. Rb1 {[%clk 0:00:43.5]} 30... Bd6
{[%clk 0:00:20.1]} 31. Ba2 {[%clk 0:00:30.9]} 31... Qe5 {[%clk 0:00:17.2]} 32.
g3 {[%clk 0:00:30.9]} 32... Rb8 {[%clk 0:00:16.6]} 33. Qg4+ {[%clk 0:00:28.8]}
33... Kh8 {[%clk 0:00:14.9]} 34. Rxb8+ {[%clk 0:00:27.6]} 34... Bxb8 {[%clk
0:00:15.8]} 35. Qg8# {[%clk 0:00:28]} 1-0

[Event "Early-Titled-Tuesday-Blitz-April-16-2024"]
[Site "Chess.com"]
[Date "2024.04.16"]
[Round "5"]
[White "janhelmer03"]
[Black "Yushko_Olga"]
[Result "0-1"]
[WhiteElo "2410"]
[BlackElo "2260"]
[TimeControl "180+1"]
[EndTime "8:55:34 PDT"]
[Termination "Yushko_Olga won on time"]

1. Nf3 {[%clk 0:02:44.4]} 1... Nf6 {[%clk 0:02:08.2]} 2. c4 {[%clk 0:02:41.3]}
2... e6 {[%clk 0:02:07.4]} 3. Nc3 {[%clk 0:02:41]} 3... d5 {[%clk 0:02:06.8]} 4.
e3 {[%clk 0:02:41.5]} 4... Bd6 {[%clk 0:02:06.5]} 5. b3 {[%clk 0:02:41.2]} 5...
O-O {[%clk 0:02:07]} 6. Bb2 {[%clk 0:02:41.8]} 6... c5 {[%clk 0:02:07.3]} 7.
cxd5 {[%clk 0:02:41.5]} 7... Nxd5 {[%clk 0:02:06.7]} 8. Be2 {[%clk 0:02:41.3]}
8... Nc6 {[%clk 0:02:04.2]} 9. Nxd5 {[%clk 0:02:36.9]} 9... exd5 {[%clk
0:02:04.1]} 10. O-O {[%clk 0:02:30.9]} 10... d4 {[%clk 0:02:04.5]} 11. exd4
{[%clk 0:02:02.2]} 11... cxd4 {[%clk 0:02:00.8]} 12. Bb5 {[%clk 0:02:02.3]}
12... Bg4 {[%clk 0:01:49.4]} 13. h3 {[%clk 0:01:43.6]} 13... Bh5 {[%clk
0:01:46.8]} 14. g4 {[%clk 0:01:38.1]} 14... Bg6 {[%clk 0:01:46.7]} 15. Nxd4
{[%clk 0:01:36.7]} 15... Nxd4 {[%clk 0:01:45.8]} 16. Bxd4 {[%clk 0:01:37.6]}
16... Bc7 {[%clk 0:01:45]} 17. Be3 {[%clk 0:01:26]} 17... Qd6 {[%clk 0:01:41.8]}
18. f4 {[%clk 0:01:25.1]} 18... Be4 {[%clk 0:01:41.1]} 19. Rc1 {[%clk 0:01:20]}
19... a6 {[%clk 0:01:37.7]} 20. Be2 {[%clk 0:01:17.1]} 20... Bc6 {[%clk
0:01:29.8]} 21. Bf3 {[%clk 0:01:16.8]} 21... Bb5 {[%clk 0:01:30.1]} 22. Rf2
{[%clk 0:01:14.6]} 22... Qh6 {[%clk 0:01:29.7]} 23. Bg2 {[%clk 0:01:11.6]} 23...
Bd6 {[%clk 0:01:22.6]} 24. f5 {[%clk 0:01:11.2]} 24... Qh4 {[%clk 0:01:20.4]}
25. Qf3 {[%clk 0:01:04.7]} 25... Bc6 {[%clk 0:01:19.7]} 26. Rxc6 {[%clk
0:00:51.8]} 26... bxc6 {[%clk 0:01:20.6]} 27. Qxc6 {[%clk 0:00:51.1]} 27... Qg3
{[%clk 0:01:17.8]} 28. Qf3 {[%clk 0:00:44]} 28... Qh2+ {[%clk 0:01:17.5]} 29.
Kf1 {[%clk 0:00:44.1]} 29... Rac8 {[%clk 0:01:17.1]} 30. Re2 {[%clk 0:00:39.1]}
30... Bg3 {[%clk 0:01:14.2]} 31. d4 {[%clk 0:00:30.3]} 31... Rfe8 {[%clk
0:01:10.5]} 32. Bh1 {[%clk 0:00:07.6]} 32... Rc1+ {[%clk 0:00:57.3]} 33. Bxc1
{[%clk 0:00:05.6]} 33... Rxe2 {[%clk 0:00:55.5]} 34. Qa8+ {[%clk 0:00:05.5]}
34... Bb8 {[%clk 0:00:55.9]} 35. Qxb8+ {[%clk 0:00:01.8]} 35... Qxb8 {[%clk
0:00:55]} 36. Kxe2 {[%clk 0:00:02.1]} 36... Qh2+ {[%clk 0:00:55]} 0-1

[Event "Early-Titled-Tuesday-Blitz-April-16-2024"]
[Site "Chess.com"]
[Date "2024.04.16"]
[Round "5"]
[White "UNSTOPPABLE_LEGEND"]
[Black "MdChess1734"]
[Result "1-0"]
[WhiteElo "2566"]
[BlackElo "2365"]
[TimeControl "180+1"]
[EndTime "8:55:35 PDT"]
[Termination "UNSTOPPABLE_LEGEND won by checkmate"]

1. d4 {[%clk 0:03:00.9]} 1... Nf6 {[%clk 0:02:47.9]} 2. Bf4 {[%clk 0:03:00.3]}
2... e6 {[%clk 0:02:47.9]} 3. e3 {[%clk 0:02:59]} 3... b6 {[%clk 0:02:48]} 4.
Qf3 {[%clk 0:02:56.6]} 4... Nc6 {[%clk 0:02:42.2]} 5. Nc3 {[%clk 0:02:42.7]}
5... Bb7 {[%clk 0:02:37.2]} 6. Bd3 {[%clk 0:02:41.1]} 6... Qc8 {[%clk
0:02:23.2]} 7. Qh3 {[%clk 0:02:37]} 7... Nb4 {[%clk 0:02:18.7]} 8. Nf3 {[%clk
0:02:23.5]} 8... Nxd3+ {[%clk 0:02:14.2]} 9. cxd3 {[%clk 0:02:24.4]} 9... Ba6
{[%clk 0:02:08.3]} 10. O-O {[%clk 0:02:21.2]} 10... Bxd3 {[%clk 0:02:06]} 11.
Rfd1 {[%clk 0:02:20.1]} 11... Ba6 {[%clk 0:02:00]} 12. Rac1 {[%clk 0:02:19.2]}
12... d6 {[%clk 0:01:54.6]} 13. Bg5 {[%clk 0:02:01.2]} 13... Be7 {[%clk
0:01:52.2]} 14. e4 {[%clk 0:02:00.6]} 14... Ng8 {[%clk 0:01:10.8]} 15. e5 {[%clk
0:01:55.5]} 15... d5 {[%clk 0:01:04.3]} 16. Qg4 {[%clk 0:01:34.8]} 16... Bxg5
{[%clk 0:00:27.5]} 17. Qxg5 {[%clk 0:01:35.7]} 17... g6 {[%clk 0:00:26.4]} 18.
Nxd5 {[%clk 0:00:57.3]} 18... exd5 {[%clk 0:00:20.4]} 19. e6 {[%clk 0:00:58.2]}
19... f6 {[%clk 0:00:19.3]} 20. Qg3 {[%clk 0:00:52.7]} 20... c6 {[%clk
0:00:16.6]} 21. Ne5 {[%clk 0:00:46.7]} 21... Ne7 {[%clk 0:00:14.3]} 22. Nd7
{[%clk 0:00:40.8]} 22... Rf8 {[%clk 0:00:12]} 23. Qh4 {[%clk 0:00:25]} 23... h5
{[%clk 0:00:10.4]} 24. Nxf8 {[%clk 0:00:20.9]} 24... g5 {[%clk 0:00:08.3]} 25.
Qxh5+ {[%clk 0:00:21.2]} 25... Kxf8 {[%clk 0:00:08.7]} 26. Qf7# {[%clk
0:00:21.6]} 1-0

[Event "Early-Titled-Tuesday-Blitz-April-16-2024"]
[Site "Chess.com"]
[Date "2024.04.16"]
[Round "5"]
[White "wonderfultime"]
[Black "Caradhrast"]
[Result "1-0"]
[WhiteElo "2990"]
[BlackElo "2662"]
[TimeControl "180+1"]
[EndTime "8:55:37 PDT"]
[Termination "wonderfultime won by resignation"]

1. d4 {[%clk 0:02:56.8]} 1... Nf6 {[%clk 0:02:58.6]} 2. Nf3 {[%clk 0:02:56.7]}
2... g6 {[%clk 0:02:58.9]} 3. Bg5 {[%clk 0:02:55.7]} 3... Bg7 {[%clk 0:02:59.7]}
4. Nbd2 {[%clk 0:02:55.1]} 4... d5 {[%clk 0:03:00.1]} 5. c3 {[%clk 0:02:55.2]}
5... O-O {[%clk 0:03:00.5]} 6. e3 {[%clk 0:02:55.8]} 6... c5 {[%clk 0:03:00.2]}
7. Bd3 {[%clk 0:02:56.3]} 7... h6 {[%clk 0:02:59.6]} 8. Bh4 {[%clk 0:02:54.8]}
8... Nc6 {[%clk 0:02:58.3]} 9. O-O {[%clk 0:02:54.7]} 9... Re8 {[%clk
0:02:57.7]} 10. dxc5 {[%clk 0:02:41.8]} 10... e5 {[%clk 0:02:23.2]} 11. Bxf6
{[%clk 0:02:37.2]} 11... Bxf6 {[%clk 0:02:23.3]} 12. e4 {[%clk 0:02:38.1]} 12...
Bg7 {[%clk 0:02:12.2]} 13. Re1 {[%clk 0:02:21.7]} 13... Be6 {[%clk 0:01:55.2]}
14. Qc2 {[%clk 0:02:02.1]} 14... Qc7 {[%clk 0:01:14.5]} 15. exd5 {[%clk
0:01:26.1]} 15... Bxd5 {[%clk 0:01:15.4]} 16. Be4 {[%clk 0:01:26.8]} 16... Be6
{[%clk 0:01:04.9]} 17. Bxc6 {[%clk 0:01:11]} 17... Qxc6 {[%clk 0:00:54.5]} 18.
b4 {[%clk 0:00:59]} 18... f5 {[%clk 0:00:49.6]} 19. Nxe5 {[%clk 0:00:55.2]}
19... Qc7 {[%clk 0:00:31.4]} 20. Nxg6 {[%clk 0:00:49.7]} 20... Rad8 {[%clk
0:00:30.5]} 21. Nf3 {[%clk 0:00:47.7]} 21... Qf7 {[%clk 0:00:19.8]} 22. Nge5
{[%clk 0:00:42.2]} 22... Qf6 {[%clk 0:00:20.1]} 23. Nd4 {[%clk 0:00:42.9]} 23...
Bd5 {[%clk 0:00:18.7]} 24. f4 {[%clk 0:00:42.6]} 24... Be4 {[%clk 0:00:18.2]}
25. Qf2 {[%clk 0:00:42.9]} 25... Re7 {[%clk 0:00:15.3]} 26. a3 {[%clk
0:00:30.4]} 26... Qa6 {[%clk 0:00:15.2]} 27. Re3 {[%clk 0:00:29]} 27... Bxe5
{[%clk 0:00:12.7]} 28. fxe5 {[%clk 0:00:29.9]} 28... Rxe5 {[%clk 0:00:13.6]} 29.
Qg3+ {[%clk 0:00:29.2]} 1-0

[Event "Early-Titled-Tuesday-Blitz-April-16-2024"]
[Site "Chess.com"]
[Date "2024.04.16"]
[Round "5"]
[White "CD3m"]
[Black "koncheto"]
[Result "0-1"]
[WhiteElo "2350"]
[BlackElo "2557"]
[TimeControl "180+1"]
[EndTime "8:55:37 PDT"]
[Termination "koncheto won by checkmate"]

1. e4 {[%clk 0:03:00.9]} 1... e5 {[%clk 0:02:56.2]} 2. Nf3 {[%clk 0:03:00.9]}
2... Nf6 {[%clk 0:02:56.4]} 3. Nxe5 {[%clk 0:02:57.7]} 3... Nc6 {[%clk
0:02:56.8]} 4. Nc4 {[%clk 0:02:53.5]} 4... Nxe4 {[%clk 0:02:51.9]} 5. d3 {[%clk
0:02:53.8]} 5... Nf6 {[%clk 0:02:50.9]} 6. d4 {[%clk 0:02:54.2]} 6... d5 {[%clk
0:02:47.7]} 7. Ne3 {[%clk 0:02:54.8]} 7... Bd6 {[%clk 0:02:46.7]} 8. c4 {[%clk
0:02:54.2]} 8... dxc4 {[%clk 0:02:44.7]} 9. Bxc4 {[%clk 0:02:53.2]} 9... O-O
{[%clk 0:02:42.7]} 10. O-O {[%clk 0:02:53]} 10... Nxd4 {[%clk 0:02:41.9]} 11.
Nc3 {[%clk 0:02:50.4]} 11... c6 {[%clk 0:02:31.2]} 12. a3 {[%clk 0:02:45]} 12...
Nf5 {[%clk 0:02:23.5]} 13. b4 {[%clk 0:02:41.6]} 13... Nxe3 {[%clk 0:01:30.5]}
14. Bxe3 {[%clk 0:02:42.5]} 14... Ng4 {[%clk 0:01:30]} 15. h3 {[%clk 0:02:42.7]}
15... Ne5 {[%clk 0:01:05.8]} 16. Bb3 {[%clk 0:02:29.4]} 16... Bf5 {[%clk
0:01:02.2]} 17. Bd4 {[%clk 0:02:10.6]} 17... Qh4 {[%clk 0:00:52.9]} 18. Re1
{[%clk 0:02:00.3]} 18... Nd3 {[%clk 0:00:29.8]} 19. Ne2 {[%clk 0:01:36.6]} 19...
Nxe1 {[%clk 0:00:26.5]} 20. Qxe1 {[%clk 0:01:37.5]} 20... Rfe8 {[%clk 0:00:20]}
21. Qd2 {[%clk 0:01:31.3]} 21... Rxe2 {[%clk 0:00:15.7]} 22. Qxe2 {[%clk
0:01:28.9]} 22... Qxd4 {[%clk 0:00:16.3]} 23. Rd1 {[%clk 0:01:27.9]} 23... Qf6
{[%clk 0:00:16.4]} 24. Qc4 {[%clk 0:01:22.1]} 24... Rd8 {[%clk 0:00:07.5]} 25.
g3 {[%clk 0:01:20.7]} 25... h6 {[%clk 0:00:06.7]} 26. h4 {[%clk 0:01:18.3]}
26... Be6 {[%clk 0:00:06.8]} 27. Qc2 {[%clk 0:01:17.9]} 27... Bxb3 {[%clk
0:00:06.7]} 28. Qxb3 {[%clk 0:01:18.8]} 28... Be7 {[%clk 0:00:05.7]} 29. Re1
{[%clk 0:01:18.7]} 29... Bf8 {[%clk 0:00:05.8]} 30. Re2 {[%clk 0:01:19.1]} 30...
Qd6 {[%clk 0:00:05.2]} 31. Qc4 {[%clk 0:01:19.2]} 31... Qd1+ {[%clk 0:00:04.8]}
32. Kg2 {[%clk 0:01:19.2]} 32... Qd5+ {[%clk 0:00:05.4]} 33. Qxd5 {[%clk
0:01:19.2]} 33... Rxd5 {[%clk 0:00:06.3]} 34. Re8 {[%clk 0:01:19.3]} 34... a5
{[%clk 0:00:06.5]} 35. Rb8 {[%clk 0:01:19.8]} 35... axb4 {[%clk 0:00:06.6]} 36.
axb4 {[%clk 0:01:20.7]} 36... Rb5 {[%clk 0:00:07]} 37. Rc8 {[%clk 0:01:20.9]}
37... Rxb4 {[%clk 0:00:07.4]} 38. Rd8 {[%clk 0:01:21.8]} 38... c5 {[%clk
0:00:07.3]} 39. Re8 {[%clk 0:01:22.7]} 39... c4 {[%clk 0:00:07.6]} 40. Rc8
{[%clk 0:01:23.6]} 40... b5 {[%clk 0:00:06.8]} 41. Kf3 {[%clk 0:01:24.5]} 41...
Rb3+ {[%clk 0:00:06.9]} 42. Ke2 {[%clk 0:01:25.4]} 42... c3 {[%clk 0:00:07.6]}
43. Ke3 {[%clk 0:01:26.3]} 43... b4 {[%clk 0:00:08.1]} 44. Kd3 {[%clk
0:01:27.2]} 44... Rb2 {[%clk 0:00:07.6]} 45. Rb8 {[%clk 0:01:19.3]} 45... Rxf2
{[%clk 0:00:06.7]} 46. Ke3 {[%clk 0:01:19.9]} 46... Rh2 {[%clk 0:00:06]} 47. g4
{[%clk 0:01:20.4]} 47... Rxh4 {[%clk 0:00:05.4]} 48. Kf4 {[%clk 0:01:20.9]}
48... Rh2 {[%clk 0:00:04.9]} 49. Kg3 {[%clk 0:01:21.4]} 49... Rd2 {[%clk
0:00:05.2]} 50. g5 {[%clk 0:01:22.3]} 50... c2 {[%clk 0:00:05.6]} 51. g6 {[%clk
0:01:23]} 51... fxg6 {[%clk 0:00:05.7]} 52. Rc8 {[%clk 0:01:22]} 52... b3 {[%clk
0:00:06]} 53. Rc7 {[%clk 0:01:22.2]} 53... b2 {[%clk 0:00:06.3]} 54. Rc6 {[%clk
0:01:23.1]} 54... c1=Q {[%clk 0:00:06.8]} 55. Rc8 {[%clk 0:01:24]} 55... Qxc8
{[%clk 0:00:06.8]} 56. Kf3 {[%clk 0:01:23.8]} 56... Qc3+ {[%clk 0:00:06.7]} 57.
Ke4 {[%clk 0:01:23.4]} 57... Rd4+ {[%clk 0:00:07.2]} 58. Ke5 {[%clk 0:01:23.2]}
58... Qc5+ {[%clk 0:00:08.1]} 59. Ke6 {[%clk 0:01:24.1]} 59... Rd6# {[%clk
0:00:09]} 0-1